fUSD/lending_fUSD_20240713
["ID","MTS","AMOUNT","RATE_DAILY","PERIOD"]
[331916222,1720837833114,-1783.73,0.00013999,2]
[331916223,1720837833122,-319.9852175,0.00013999,2]
[331916224,1720837833131,-500.0,0.00013999,2]
[331916225,1720837833140,-500.0,0.00013999,2]
[331916226,1720837833149,-241.44414262,0.00013999,2]
[331916227,1720837833158,-500.0,0.00013999,2]
[331916228,1720837833167,-500.0,0.00013999,2]
[331916229,1720837833177,-500.0,0.00013999,2]
[331916230,1720837833187,-335.44432198,0.00013999,2]
[331916231,1720837833196,-500.0,0.00013999,2]
[331916232,1720837833205,-376.23230624,0.00013999,2]
[331916233,1720837833215,-500.0,0.00013999,2]
[331916234,1720837833225,-500.0,0.00013999,2]
[331916235,1720837833234,-235.6535792,0.00013999,2]
[331916236,1720837833243,-531.6538481,0.00013999,2]
[331916237,1720837833253,-323.62600375,0.00013999,2]
[331916238,1720837833262,-500.0,0.00013999,2]
[331916239,1720837833271,-500.0,0.00013999,2]
[331916240,1720837833280,-1685.0,0.00013999,2]
[331916241,1720837833289,-370.9303092,0.00013999,2]
[331916242,1720837833299,-515.72524322,0.00013999,2]
[331916243,1720837833307,-500.0,0.00013999,2]
[331916244,1720837833317,-500.0,0.00013999,2]
[331916245,1720837833326,-510.75404539,0.00013999,2]
[331916246,1720837833335,-500.0,0.00013999,2]
[331916247,1720837833344,-550.95887762,0.00013999,2]
[331916248,1720837833354,-559.28347661,0.00013999,2]
[331916249,1720837833363,-253.27670478,0.00013999,2]
[331916250,1720837833373,-500.0,0.00013999,2]
[331916251,1720837833382,-519.35426501,0.00013999,2]
[331916252,1720837833391,-9635.12997748,0.00014,2]
[331916253,1720837833410,-528.641867,0.00012302,2]
[331916254,1720837833421,-760.76430191,0.00012302,2]
[331916255,1720837833430,-16589.13265296,0.00014,2]
[331916272,1720837837818,-221.66776121,0.00013774,2]
[331916274,1720837837828,-773.69744807,0.00014,2]
[331916276,1720837837839,-647.07832143,0.00014,2]
[331916280,1720837837967,-1161.22,0.00014,2]
[331916281,1720837837979,-4307.3259073,0.00014,2]
[331916282,1720837837992,-1839.93992941,0.00014,2]
[331916283,1720837838118,-2208.23057587,0.00014,2]
[331916287,1720837839774,-3779.77020261,0.00014,2]
[331916288,1720837839785,-573.37954002,0.00014,2]
[331916289,1720837839796,-525.78909216,0.00014,2]
[331916290,1720837839938,-57105.07442558,0.00014,2]
[331916291,1720837839951,-256191.1131805,0.00014,2]
[331916292,1720837839961,-38820.2497901,0.00014,2]
[331916293,1720837839973,-2809.89847193,0.00014,2]
[331916294,1720837839984,-2094.51959016,0.00014,2]
[331916295,1720837839995,-857.69234347,0.00014,2]
[331916296,1720837840007,-396.05309653,0.00014,2]
[331916297,1720837840018,-6359.62511263,0.00014,2]
[331916298,1720837840105,-3888.49741325,0.00014,2]
[331916299,1720837840116,-1110.35193382,0.00014,2]
[331916300,1720837840127,-95942.73161476,0.00014,2]
[331916301,1720837840228,-953.69112226,0.00014,2]
[331916308,1720837842880,-255.2561346,0.00014,2]
[331916312,1720837844468,-545.24929471,0.00014,2]
[331916313,1720837844486,-495.40756549,0.00014,2]
[331916314,1720837844497,-6319.58947999,0.00014,2]
[331916315,1720837844509,-915.88632518,0.00014,2]
[331916316,1720837844521,-737.71052162,0.00014,2]
[331916318,1720837845935,-581.824926,0.00013798,2]
[331916319,1720837845948,-833.52,0.00013798,2]
[331916320,1720837846098,-6084.655074,0.00013798,2]
[331916321,1720837846107,-49.79492601,0.00014,2]
[331916322,1720837846118,-747.54487454,0.00014,2]
[331916323,1720837846248,-1068.65364411,0.00014,2]
[331916324,1720837846258,-13.50928692,0.00014,2]
[331916325,1720837846269,-306.6608819,0.00014,2]
[331916326,1720837846280,-313.99159286,0.00014,2]
[331916327,1720837999570,151.071311,0.00025,61]
[331916328,1720838003233,151.071311,0.00025,62]
[331916329,1720838007069,151.071311,0.00025,63]
[331916330,1720838010902,151.071311,0.00025,64]
[331916331,1720838023625,151.071311,0.00025,68]
[331916332,1720838033495,151.071311,0.00025,69]
[331916333,1720838063451,242.071311,0.00025,70]
[331916335,1720838152801,455.07,0.00011058,2]
[331916337,1720838356820,500.0,0.00011058,2]
[331916338,1720838357154,500.0,0.00011058,2]
[331916339,1720838357489,500.0,0.00011058,2]
[331916340,1720838358391,846.0,0.00011058,2]
[331916344,1720838713124,219133.38682192,0.00027,120]
[331916345,1720838717591,452.85,0.0001091,2]
[331916346,1720838744619,1549.72556327,0.00011058,2]
[331916348,1720838832626,1033.15037552,0.00011058,2]
[331916363,1720838929636,860.95864626,0.00011058,2]
[331916368,1720839016220,448.5594547,0.00011058,2]
[331916369,1720839032021,-155.17725812,0.00012314,2]
[331916371,1720839032033,-193.26227188,0.00012801,2]
[331916373,1720839032046,-56.73772812,0.00012801,2]
[331916374,1720839032055,-244.28308639,0.00012801,2]
[331916375,1720839032237,-1240.78981057,0.00012801,2]
[331916376,1720839032248,-5477.74514923,0.00012801,2]
[331916377,1720839032259,-408.85640308,0.00012801,2]
[331916378,1720839037922,-2558.84555073,0.00012801,2]
[331916379,1720839037931,-164.95,0.00012834,2]
[331916380,1720839037941,-1250.0,0.00013,2]
[331916381,1720839037951,-1000.0,0.00013,2]
[331916382,1720839037964,-213.37,0.00013093,2]
[331916383,1720839037973,-452.85,0.00013174,2]
[331916384,1720839037982,-6329.96,0.00013224,2]
[331916385,1720839037992,-515.0,0.00013448,2]
[331916386,1720839038002,-150.99,0.00013584,2]
[331916387,1720839038011,-316.179213,0.00013667,2]
[331916388,1720839038020,-3384.0569,0.0001368,2]
[331916389,1720839038199,-1587.21,0.00013699,2]
[331916390,1720839038208,-499.99,0.00013699,2]
[331916391,1720839038217,-632.22,0.00013699,2]
[331916392,1720839038227,-250.0,0.00013699,2]
[331916393,1720839038236,-1084.39963606,0.0001372,2]
[331916394,1720839038245,-1070.98173324,0.0001372,2]
[331916395,1720839038254,-150.0,0.00013769,2]
[331916396,1720839038263,-2705.51974962,0.0001377,2]
[331916397,1720839038273,-1857.99,0.00013779,2]
[331916398,1720839038283,-500.0,0.00013779,2]
[331916399,1720839038293,-500.0,0.00013779,2]
[331916400,1720839038303,-513.91,0.00013779,2]
[331916401,1720839038312,-500.0,0.00013779,2]
[331916402,1720839038321,-500.0,0.00013779,2]
[331916403,1720839038330,-340.95232072,0.00013779,2]
[331916404,1720839038339,-2257.78,0.00013779,2]
[331916405,1720839038349,-500.0,0.00013779,2]
[331916406,1720839038358,-212.25016743,0.00013779,2]
[331916407,1720839038368,-244.6909029,0.00013779,2]
[331916408,1720839038377,-1657.86,0.00013779,2]
[331916409,1720839038387,-500.0,0.00013779,2]
[331916410,1720839038396,-500.0,0.00013779,2]
[331916411,1720839038406,-471.70041078,0.00013779,2]
[331916412,1720839038415,-22527.5088,0.0001378,2]
[331916413,1720839038424,-3761.553,0.0001378,2]
[331916414,1720839038434,-2142.22054165,0.0001378,2]
[331916415,1720839038445,-954.37896707,0.0001378,2]
[331916417,1720839038468,-484.29211093,0.0001378,2]
[331916554,1720839040170,-6237.32090486,0.0001378,2]
[331916557,1720839040193,-21764.53720752,0.0001378,2]
[331916566,1720839040271,-685.63941053,0.0001378,2]
[331916568,1720839040283,-6032.55630432,0.0001378,2]
[331916597,1720839040559,-1445.56160592,0.0001378,2]
[331916600,1720839040570,-1811.90938064,0.0001378,2]
[331917020,1720839044611,-627.75454753,0.00013779,2]
[331917022,1720839044621,-3052.54732353,0.0001378,2]
[331917048,1720839044866,-44781.60921649,0.0001378,2]
[331917050,1720839044877,-27908.50961047,0.0001378,2]
[331917237,1720839046538,-533.48154571,0.0001378,2]
[331917245,1720839046613,-637.56674489,0.0001378,2]
[331917250,1720839046627,-99106.89662547,0.0001378,2]
[331917252,1720839046635,-624.9314,0.0001378,2]
[331917255,1720839046645,-288.15423318,0.00013799,2]
[331917257,1720839046654,-288.15423311,0.00013799,2]
[331917260,1720839046663,-288.15423311,0.00013799,2]
[331917263,1720839046672,-288.15423311,0.00013799,2]
[331917266,1720839046682,-288.15423311,0.00013799,2]
[331917269,1720839046692,-300.81,0.000138,2]
[331917272,1720839046702,-288.15423311,0.00013802,2]
[331917276,1720839046712,-417.93936495,0.00013814,2]
[331917279,1720839046721,-288.15423311,0.00013827,2]
[331917282,1720839046731,-7500.0,0.00013834,2]
[331917284,1720839046740,-1857.99,0.00013834,2]
[331917288,1720839046749,-500.0,0.00013834,2]
[331917290,1720839046758,-513.91,0.00013834,2]
[331917293,1720839046767,-559.65522175,0.00013834,2]
[331917296,1720839046777,-500.0,0.00013834,2]
[331917300,1720839046787,-2257.78,0.00013834,2]
[331917302,1720839046796,-209.7844,0.00013834,2]
[331917306,1720839046806,-1657.86,0.00013834,2]
[331917309,1720839046816,-500.0,0.00013834,2]
[331917311,1720839046827,-491.14386854,0.00013834,2]
[331917314,1720839046836,-316.179213,0.00013838,2]
[331917316,1720839046846,-288.15423311,0.00013851,2]
[331917317,1720839046855,-3000.0,0.0001386,2]
[331917319,1720839046866,-288.15423311,0.00013876,2]
[331917321,1720839046875,-500.0,0.00013879,2]
[331917323,1720839046885,-2500.0,0.00013879,3]
[331917325,1720839046895,-2059.83,0.00013879,2]
[331917327,1720839046905,-500.0,0.00013879,2]
[331917329,1720839046915,-500.0,0.00013879,2]
[331917331,1720839046925,-500.0,0.00013879,2]
[331917333,1720839046934,-500.0,0.00013879,2]
[331917335,1720839046944,-500.0,0.00013879,2]
[331917336,1720839046953,-1857.99,0.00013889,2]
[331917337,1720839046966,-315.61168238,0.00013889,2]
[331917338,1720839046976,-513.91,0.00013889,2]
[331917339,1720839046985,-500.0,0.00013889,2]
[331917340,1720839046995,-2257.78,0.00013889,2]
[331917341,1720839047005,-1657.86,0.00013889,2]
[331917342,1720839047016,-414.65740251,0.00013889,2]
[331917343,1720839047027,-221.76,0.0001389,3]
[331917344,1720839047038,-277.38,0.00013897,2]
[331917345,1720839047047,-209.54583652,0.000139,2]
[331917346,1720839047057,-288.15423311,0.000139,2]
[331917347,1720839047066,-198.36196005,0.000139,2]
[331917348,1720839047075,-479.56603185,0.000139,2]
[331917349,1720839047084,-500.0,0.00013934,2]
[331917350,1720839047094,-2500.0,0.00013934,3]
[331917351,1720839047103,-2059.83,0.00013934,2]
[331917352,1720839047112,-508.10270586,0.00013934,2]
[331917353,1720839047121,-507.0,0.00013934,2]
[331917354,1720839047130,-500.0,0.00013934,2]
[331917355,1720839047141,-500.0,0.00013934,2]
[331917356,1720839047152,-224.09583853,0.00013934,2]
[331917357,1720839047163,-1857.99,0.00013944,2]
[331917358,1720839047174,-513.91,0.00013944,2]
[331917359,1720839047184,-476.48049117,0.00013944,2]
[331917360,1720839047193,-2257.78,0.00013944,2]
[331917361,1720839047202,-1657.86,0.00013944,2]
[331917363,1720839047213,-2000.0,0.00013973,3]
[331917364,1720839047223,-500.0,0.00013989,2]
[331917365,1720839047232,-2500.0,0.00013989,3]
[331917366,1720839047241,-2059.83,0.00013989,2]
[331917367,1720839047253,-500.0,0.00013989,2]
[331917368,1720839047263,-500.0,0.00013989,2]
[331917369,1720839047273,-156.29325968,0.00013989,2]
[331917370,1720839047282,-155.53089911,0.00013989,2]
[331917371,1720839047291,-2695.35860272,0.0001399,3]
[331917372,1720839047301,-7412.23615748,0.0001399,3]
[331917373,1720839047310,-1857.99,0.00013998,2]
[331917374,1720839047319,-513.91,0.00013998,2]
[331917375,1720839047331,-2257.78,0.00013998,2]
[331917376,1720839047340,-1657.86,0.00013998,2]
[331917377,1720839047349,-11586.3974524,0.00013999,2]
[331917378,1720839047359,-2447.618927,0.00013999,2]
[331917379,1720839047368,-49646.6812079,0.00013999,2]
[331917380,1720839047377,-1106.17,0.00013999,2]
[331917381,1720839047386,-155.22409325,0.00013999,2]
[331917382,1720839047395,-371.10892981,0.00013999,2]
[331917383,1720839047405,-209461.02795472,0.00014,2]
[331917385,1720839094031,267.0,0.00025,60]
[331917386,1720839250393,446.57,0.00011069,2]
[331917387,1720839306156,448.5594547,0.00011069,2]
[331917388,1720839319751,227.34202992,0.00011199,2]
[331917389,1720839393655,448.5594547,0.00011199,2]
[331917390,1720839394585,152.69068937,0.00025,60]
[331917391,1720839523276,1275.55999999,0.00025,60]
[331917392,1720839530026,460.9031091,0.00011199,2]
[331917393,1720839576631,2520.71084619,0.00025,60]
[331917394,1720839592677,448.5594547,0.00011199,2]
[331917396,1720839701678,448.5594547,0.00011199,2]
[331917397,1720839731675,448.5594547,0.00011199,2]
[331917399,1720839747313,616.18959064,0.00011199,2]
[331917400,1720839754936,2110.78048118,0.00025,60]
[331917402,1720839788732,442.92,0.00010949,2]
[331917407,1720839861676,448.5594547,0.00010949,2]
[331917408,1720839913675,448.5594547,0.00010949,2]
[331917410,1720839985186,951.40925227,0.00011199,2]
[331917412,1720840021696,448.5594547,0.00011199,2]
[331917414,1720840050508,307.2687394,0.00011199,2]
[331917421,1720840124721,448.5594547,0.00011199,2]
[331917449,1720840209415,402.0,0.00025,60]
[331917455,1720840232212,-652.0,0.00012838,2]
[331917456,1720840232224,-170.69,0.00012844,2]
[331917457,1720840232235,-250.0,0.00012849,2]
[331917458,1720840232246,-169.57,0.00013023,2]
[331917459,1720840232256,-1000.0,0.00013024,2]
[331917460,1720840232267,-371.10892981,0.00013128,2]
[331917461,1720840232279,-442.92,0.00013213,2]
[331917462,1720840232290,-300.0,0.00013302,2]
[331917463,1720840232302,-2506.4281,0.00013303,2]
[331917464,1720840232312,-297.23686,0.00013472,2]
[331917465,1720840232324,-12821.64235029,0.000135,2]
[331917466,1720840232335,-256.05728283,0.00013574,2]
[331917467,1720840232344,-159.01935,0.00013667,2]
[331917468,1720840232354,-169.279739,0.00013667,2]
[331917469,1720840232365,-169.279736,0.00013667,2]
[331917470,1720840232375,-150.762748,0.00013667,2]
[331917471,1720840232383,-150.0,0.00013679,2]
[331917472,1720840232394,-21373.04588626,0.0001368,2]
[331917473,1720840232406,-6851.08441374,0.0001368,2]
[331917474,1720840232416,-527.97,0.00013699,2]
[331917475,1720840232426,-250.0,0.00013699,2]
[331917476,1720840232436,-3987.34558626,0.0001372,2]
[331917479,1720840240569,-697.27299999,0.00013574,2]
[331917480,1720840240582,-1148.27297478,0.00013574,2]
[331917481,1720840240594,-6399.57537141,0.00013574,2]
[331917483,1720840240604,-1212.86341374,0.0001372,2]
[331917484,1720840240631,-1209.374,0.0001372,2]
[331917485,1720840240640,-34286.48973407,0.0001372,2]
[331917486,1720840240652,-1086.4998,0.0001372,2]
[331917487,1720840240905,-1356.00596654,0.0001372,2]
[331917488,1720840240916,-360.86093302,0.0001372,2]
[331917489,1720840240929,-880.77556637,0.0001372,2]
[331917490,1720840240938,-500.0,0.00013779,2]
[331917491,1720840240948,-504.78935885,0.00013779,2]
[331917492,1720840240957,-60.07765573,0.00013779,2]
[331917493,1720840240968,-376.9683943,0.00013779,2]
[331917494,1720840240978,-157.05275405,0.00013779,2]
[331917495,1720840240989,-1645.29724595,0.00013779,2]
[331917496,1720840240998,-2097.40492968,0.000138,2]
[331917894,1720840245120,-4467.23901196,0.00013779,2]
[331917895,1720840245129,-1423.75347248,0.000138,2]
[331918037,1720840246427,-69155.89977126,0.000138,2]
[331918040,1720840246439,-255.1130565,0.000138,2]
[331918042,1720840246451,-11671.2,0.000138,2]
[331918044,1720840246465,-29057.13599495,0.000138,2]
[331918118,1720840326751,434.11,0.00011136,2]
[331918119,1720840344688,448.5594547,0.00011136,2]
[331918120,1720840438707,231.59787488,0.00011136,2]
[331918123,1720840736256,256.05728283,0.00011199,2]
[331918130,1720840948272,430.87,0.00011015,2]
[331918131,1720841044010,155.37742479,0.00011199,2]
[331918132,1720841087091,155.0,0.00011199,2]
[331918191,1720841432712,-273.66035735,0.00012273,2]
[331918192,1720841432722,-155.0,0.00012302,2]
[331918193,1720841432732,-250.0,0.00012874,2]
[331918194,1720841432742,-300.0,0.00012877,2]
[331918195,1720841432751,-17037.90608497,0.00012878,2]
[331918206,1720841438358,-3000.37259168,0.00012878,2]
[331918207,1720841438370,-839.11132335,0.00012878,2]
[331918208,1720841438379,-169.57,0.00012952,2]
[331918209,1720841438389,-1250.0,0.00013,2]
[331918210,1720841438398,-1000.0,0.00013039,2]
[331918211,1720841438407,-269.47,0.00013063,2]
[331918212,1720841438417,-300.0,0.00013128,2]
[331918213,1720841438427,-430.87,0.00013279,2]
[331918214,1720841438436,-616.18959064,0.00013574,2]
[331918215,1720841438446,-417.93936495,0.00013645,2]
[331918216,1720841438457,-369.91,0.00013699,2]
[331918217,1720841438467,-150.0,0.00013799,2]
[331918218,1720841438476,-22706.72576544,0.000138,2]
[331918219,1720841438487,-3400.29700969,0.000138,2]
[331918220,1720841438497,-3000.0,0.000138,2]
[331918221,1720841438506,-559.69158413,0.00013849,2]
[331918222,1720841438515,-276694.29647791,0.0001388,2]
[331918223,1720841438525,-332.15190155,0.0001389,2]
[331918224,1720841438534,-1221.63464034,0.00013899,2]
[331918225,1720841438543,-319.7106879,0.000139,2]
[331918226,1720841438552,-1221.63464035,0.000139,2]
[331918227,1720841438562,-1257.318,0.0001398,2]
[331918228,1720841438571,-150.629,0.0001398,2]
[331918229,1720841438580,-2386.179,0.0001398,2]
[331918230,1720841438589,-1995.8,0.0001398,2]
[331918231,1720841438598,-3288.114,0.0001398,2]
[331918232,1720841438607,-550.653,0.0001398,2]
[331918233,1720841438618,-362.689,0.0001398,2]
[331918234,1720841438628,-1687.099,0.0001398,2]
[331918235,1720841438639,-1826.19,0.0001398,2]
[331918236,1720841438649,-369.971,0.0001398,2]
[331918237,1720841438660,-1808.661,0.0001398,2]
[331918238,1720841438670,-1307.056,0.0001398,2]
[331918239,1720841438680,-2698.6469762,0.00013987,5]
[331918240,1720841438689,-1727.25,0.00013989,2]
[331918241,1720841438700,-500.0,0.00013989,2]
[331918242,1720841438709,-2500.0,0.00013989,3]
[331918243,1720841438718,-1604.27,0.00013989,2]
[331918244,1720841438727,-500.0,0.00013989,2]
[331918245,1720841438737,-500.0,0.00013989,2]
[331918246,1720841438748,-500.0,0.00013989,2]
[331918247,1720841438758,-500.0,0.00013989,2]
[331918248,1720841438767,-500.0,0.00013989,2]
[331918249,1720841438777,-1389.78,0.00013989,2]
[331918250,1720841438786,-2221.4,0.00013989,2]
[331918251,1720841438796,-181.06807786,0.00013989,2]
[331918252,1720841438808,-29679.16674166,0.0001399,2]
[331918253,1720841438846,-195.67801779,0.000139,2]
[331918254,1720841438856,-1469.53880565,0.0001399,2]
[331918419,1720841440506,-4118.252,0.0001398,2]
[331918421,1720841440515,-178071.65168452,0.0001399,2]
[331918423,1720841440527,-36855.05113007,0.0001399,2]
[331918425,1720841440537,-4503.64923904,0.0001399,2]
[331918427,1720841440547,-11202.948509,0.00013999,2]
[331918429,1720841440559,-57969.4750412,0.00013999,2]
[331918431,1720841440569,-1643.6682662,0.00013999,2]
[331918433,1720841440579,-1060.08,0.00013999,2]
[331918435,1720841440588,-345.12692293,0.00013999,3]
[331918437,1720841440599,-35090.80812558,0.00014,2]
[331918450,1720841440719,-257363.8990108,0.00014,2]
[331918452,1720841440730,-1783776.95067477,0.00014,2]
[331918454,1720841440741,-3253791.09928699,0.00014,2]
[331918456,1720841440751,-3524168.53643042,0.00014,2]
[331918459,1720841440762,-262951.28200962,0.00014,2]
[331918461,1720841440775,-78896.43625104,0.00014,2]
[331918463,1720841440787,-2063.14108,0.00014,2]
[331918720,1720841443882,-168.329,0.0001398,2]
[331918721,1720841443892,-684.74720557,0.00014,2]
[331918745,1720841445924,-170.69,0.00013365,2]
[331918746,1720841445935,-4526.44405322,0.00014,2]
[331918747,1720841446499,-532.49970175,0.00014,2]
[331918748,1720841446647,-5998.89357179,0.00014,2]
[331918749,1720841446660,-4856.83399687,0.00014,2]
[331918750,1720841446675,-12897.82862,0.00014,2]
[331918753,1720841623029,422.88,0.00011102,2]
[331918755,1720841747320,757.04237542,0.00011199,2]
[331918759,1720841857113,155.0,0.00011199,2]
[331918765,1720841932637,156.10991695,0.00011199,2]
[331918766,1720841942868,264.33956372,0.00011199,2]
[331918770,1720842055922,604.97,0.00025,60]
[331918772,1720842088528,302.48,0.00025,60]
[331918774,1720842153082,9999.999999,0.00025,120]
[331918775,1720842208619,7508.799999,0.00025,120]
[331918778,1720842252518,428.28,0.00010946,2]
[331918780,1720842328889,721.02350962,0.00011199,2]
[331918784,1720842426196,527.15045687,0.00011199,2]
[331918795,1720842502150,155.0,0.00011199,2]
[331918829,1720842632455,-306.85656343,0.00012314,2]
[331918830,1720842632465,-764.930982,0.00012739,2]
[331918831,1720842632476,-154.73974905,0.00012803,2]
[331918832,1720842632488,-874.54025095,0.00012803,2]
[331918833,1720842632497,-250.0,0.00012804,2]
[331918834,1720842632505,-103.57456938,0.00012806,2]
[331918835,1720842632516,-65.99543062,0.00012806,2]
[331918836,1720842632525,-694.73,0.00012817,2]
[331918837,1720842632534,-282.03,0.00012886,2]
[331918838,1720842632543,-500.0,0.00012887,2]
[331918839,1720842632552,-169.93,0.0001293,2]
[331918840,1720842632560,-555.58139963,0.00013,2]
[331918841,1720842633433,-694.41860037,0.00013,2]
[331918842,1720842633443,-205.58139963,0.00013073,2]
[331918843,1720842633454,-730.73563453,0.00013073,2]
[331918844,1720842633542,-63.68296584,0.00013073,2]
[331918845,1720842633552,-428.28,0.0001321,2]
[331918847,1720842633562,-1709.18,0.000133,2]
[331918849,1720842633571,-528.32,0.000133,2]
[331918850,1720842633580,-354.61,0.000133,2]
[331918852,1720842633589,-150.0,0.00013377,2]
[331918853,1720842633598,-152.54,0.00013378,2]
[331918854,1720842633607,-151.35,0.00013378,2]
[331918855,1720842633616,-355.29,0.00013378,2]
[331918856,1720842633626,-152.84,0.00013378,2]
[331918857,1720842633635,-424.89,0.00013378,2]
[331918858,1720842633644,-168.3,0.00013378,2]
[331918859,1720842633653,-319.96,0.00013378,2]
[331918860,1720842633662,-301.49,0.00013378,2]
[331918861,1720842633671,-150.0,0.00013378,2]
[331918862,1720842633680,-529.13,0.00013378,2]
[331918863,1720842633689,-424.89,0.00013378,2]
[331918864,1720842633698,-150.0,0.00013378,2]
[331918865,1720842633707,-150.0,0.00013378,2]
[331918866,1720842633717,-355.29,0.00013378,2]
[331918867,1720842633726,-529.13,0.00013378,2]
[331918868,1720842633736,-150.0,0.00013378,2]
[331918869,1720842633745,-165.07,0.00013378,2]
[331918870,1720842633754,-424.89,0.00013378,2]
[331918871,1720842633763,-150.0,0.00013378,2]
[331918872,1720842633772,-150.0,0.00013378,2]
[331918873,1720842633781,-150.0,0.00013378,2]
[331918874,1720842633791,-355.29,0.00013378,2]
[331918875,1720842633800,-150.0,0.00013378,2]
[331918876,1720842633809,-165.07,0.00013378,2]
[331918877,1720842633818,-150.0,0.00013378,2]
[331918878,1720842633827,-150.0,0.00013378,2]
[331918879,1720842633836,-1146.0,0.00013448,2]
[331918880,1720842633846,-659.90141323,0.00013472,2]
[331918881,1720842633855,-155.83094172,0.00013516,2]
[331918882,1720842633864,-155.0,0.00013543,2]
[331918883,1720842633874,-698.747261,0.00013667,2]
[331918884,1720842633883,-435.03,0.00013699,2]
[331918885,1720842633892,-250.0,0.00013699,2]
[331918886,1720842633902,-1859.2130498,0.0001372,2]
[331918887,1720842633911,-2232.38436841,0.00013736,2]
[331918894,1720842638362,-616.02636014,0.00012314,2]
[331918895,1720842638372,-394.90175301,0.00013736,2]
[331918896,1720842638383,-1098.9999,0.00013736,2]
[331918898,1720842639421,-3578.13546545,0.00013736,2]
[331918899,1720842639434,-1063.62414582,0.00013736,2]
[331918900,1720842639446,-4407.1591619,0.00013736,2]
[331918901,1720842639456,-530.74208182,0.00013736,2]
[331918902,1720842639465,-1000.0,0.0001378,2]
[331918903,1720842639475,-399.6147,0.0001378,2]
[331918904,1720842639486,-151.12,0.00013786,2]
[331918905,1720842639496,-698.747261,0.00013838,2]
[331918906,1720842639506,-155.0,0.00013849,2]
[331918907,1720842639516,-2500.0,0.0001386,2]
[331918908,1720842639527,-500.0,0.00013879,2]
[331918909,1720842639538,-848.98889418,0.00013879,3]
[331918910,1720842639549,-448.64,0.00013879,3]
[331918911,1720842639561,-1202.37110582,0.00013879,3]
[331918912,1720842639570,-1655.28,0.00013879,2]
[331918913,1720842639579,-500.0,0.00013879,2]
[331918914,1720842639588,-500.0,0.00013879,2]
[331918915,1720842639598,-500.0,0.00013879,2]
[331918916,1720842639607,-417.93936495,0.0001388,2]
[331918917,1720842639618,-1489.2795,0.00013899,2]
[331918918,1720842639627,-233.40492891,0.00013899,2]
[331918919,1720842639637,-160.39965838,0.00013899,2]
[331918920,1720842639647,-233.40492882,0.00013899,2]
[331918921,1720842639658,-233.40492882,0.00013899,2]
[331918922,1720842639667,-233.40492882,0.00013899,2]
[331918923,1720842639677,-233.40492882,0.00013899,2]
[331918924,1720842639686,-233.40492882,0.000139,2]
[331918925,1720842639695,-233.40492882,0.000139,2]
[331918926,1720842639705,-7500.0,0.000139,2]
[331918927,1720842639715,-233.40492882,0.000139,2]
[331918928,1720842639724,-233.40492882,0.000139,2]
[331918929,1720842639734,-4046.8911,0.000139,2]
[331918930,1720842639743,-500.0,0.000139,2]
[331918931,1720842639753,-233.40492882,0.000139,2]
[331918932,1720842639762,-11740.37247587,0.000139,2]
[331918933,1720842639771,-158.68956803,0.000139,2]
[331918934,1720842639781,-329.81328524,0.000139,2]
[331918935,1720842639790,-187.26252945,0.000139,2]
[331918936,1720842639800,-306.0344,0.0001393,2]
[331918937,1720842639811,-500.0,0.00013934,2]
[331918938,1720842639821,-2500.0,0.00013934,3]
[331918939,1720842639831,-1655.28,0.00013934,2]
[331918940,1720842639840,-500.0,0.00013934,2]
[331918941,1720842639851,-500.0,0.00013934,2]
[331918942,1720842639862,-500.0,0.00013934,2]
[331918943,1720842639872,-361.0,0.0001398,2]
[331918944,1720842639883,-1251.0,0.0001398,2]